bitfinex/quotes_SOLUSD_20250814
["timestamp","ask_amount","ask_price","bid_price","bid_amount"]
[1755146950899,9.8832669,208.8,208.78,0.2]
[1755146951598,9.8832669,208.8,208.79,36.24]
[1755146954806,10.65,208.82,208.79,36.94]
[1755146955006,9.8832669,208.85,208.8,69.5]
[1755146955224,9.8832669,208.85,208.81,0.7]
[1755146955416,10.65,208.9,208.82,0.7]
[1755146955724,9.8832669,208.85,208.82,0.7]
[1755146956405,9.8832669,208.86,208.83,0.7]
[1755146956929,9.8832669,208.87,208.84,0.7]
[1755146957124,9.8832669,208.87,208.85,0.7]
[1755146957621,9.8832669,208.87,208.79,36.24]
[1755146957622,10.5332669,208.86,208.79,0.2]
[1755146957808,9.8832669,208.8,208.79,0.2]
[1755146958008,9.8832669,208.8,208.79,36.36]
[1755146958911,9.8832669,208.8,208.79,0.2]
[1755146959135,9.8832669,208.8,208.79,36.38]
[1755146959626,9.8832669,208.8,208.79,36.36]
[1755146960610,10.5332669,208.8,208.79,0.2]
[1755146960813,20.5332669,208.8,208.79,36.14]
[1755146961132,31.1832669,208.8,208.74,0.03]
[1755146961305,9.8832669,208.75,208.74,0.03]
[1755146962116,9.8832669,208.75,208.74,36.17]
[1755146962522,10.5332669,208.75,208.74,0.03]
[1755146962719,10.5332669,208.75,208.74,36.29]
[1755146965033,9.8832669,208.75,208.74,105.13]
[1755146966313,9.8832669,208.75,208.74,70.71]
[1755146967023,9.8832669,208.75,208.74,36.29]
[1755146968031,10.5332669,208.75,208.7,0.03]
[1755146968240,9.8832669,208.73,208.7,0.03]
[1755146968536,10.5332669,208.73,208.72,36.37]
[1755146968924,9.8832669,208.73,208.72,36.37]
[1755146969333,10.5332669,208.73,208.7,0.03]
[1755146969518,9.8832669,208.72,208.7,0.03]
[1755146969916,9.8832669,208.72,208.68,0.03]
[1755146969917,20.5332669,208.72,208.68,0.03]
[1755146970133,9.8832669,208.69,208.68,0.03]
[1755146970736,9.8832669,208.69,208.68,36.37]
[1755146970954,10.5732669,208.69,208.68,36.37]
[1755146971147,0.69,208.69,208.67,0.03]
[1755146971445,19.8832669,208.69,208.68,0.69]
[1755146971743,9.8832669,208.73,208.68,0.69]
[1755146971932,9.8832669,208.74,208.68,0.69]
[1755146972120,9.8832669,208.77,208.68,0.69]
[1755146972322,9.8832669,208.78,208.68,0.69]
[1755146972523,9.8832669,208.76,208.69,36.36]
[1755146972840,9.8832669,208.75,208.7,0.69]
[1755146973028,9.8832669,208.76,208.7,0.69]
[1755146973229,9.8832669,208.75,208.7,0.69]
[1755146973449,9.8832669,208.71,208.67,0.03]
[1755146973624,9.8832669,208.69,208.68,36.38]
[1755146974946,9.8832669,208.69,208.68,70.82]
[1755146975124,9.8832669,208.69,208.68,105.26]
[1755146976247,10.5732669,208.69,208.68,68.88]
[1755146976425,10.5732669,208.69,208.68,105.28]
[1755146977344,10.5732669,208.69,208.65,0.03]
[1755146977562,9.8832669,208.66,208.65,0.03]
[1755146977862,10.5732669,208.66,208.65,0.03]
[1755146978837,10.5732669,208.66,208.65,36.47]
[1755146979721,20.4565339,208.66,208.65,36.47]
[1755146979926,9.8832669,208.67,208.65,37.16]
[1755146980225,9.8832669,208.66,208.65,37.16]
[1755146980431,9.8832669,208.66,208.65,36.47]
[1755146980824,9.8832669,208.66,208.63,0.03]
[1755146980825,10.5732669,208.66,208.63,0.03]
[1755146981019,9.8832669,208.64,208.63,0.03]
[1755146981219,10.5732669,208.64,208.61,0.03]
[1755146981425,9.8832669,208.62,208.53,0.72]
[1755146981629,9.8832669,208.54,208.53,0.03]
[1755146982333,9.8832669,208.54,208.53,36.51]
[1755146982537,10.5732669,208.54,208.53,36.51]
[1755146983037,9.8832669,208.55,208.53,36.51]
[1755146983240,9.8832669,208.57,208.54,0.69]
[1755146983445,9.8832669,208.57,208.55,0.69]
[1755146983854,9.8832669,208.57,208.53,36.51]
[1755146984028,9.8832669,208.54,208.53,0.03]
[1755146984356,9.8832669,208.59,208.53,0.03]
[1755146984357,0.69,208.57,208.53,0.03]
[1755146984552,0.69,208.57,208.54,36.5]
[1755146984855,9.8832669,208.55,208.54,36.5]
[1755146985059,9.8832669,208.55,208.54,105.38]
[1755146988175,14.357845,208.58,208.54,105.38]
[1755146988481,10.5732669,208.55,208.54,105.38]
[1755146988769,9.8832669,208.55,208.54,105.38]
[1755146989555,9.8832669,208.55,208.54,106.07]
[1755146990082,9.8832669,208.55,208.54,34.44]
[1755146990381,9.8832669,208.56,208.54,71.55]
[1755146990677,10.0,208.61,208.53,0.03]
[1755146990678,9.8832669,208.55,208.53,0.03]
[1755146990851,9.8832669,208.54,208.53,0.03]
[1755146991057,10.5732669,208.54,208.49,0.03]
[1755146991252,9.8832669,208.5,208.49,0.03]
[1755146991465,10.5732669,208.5,208.49,0.03]
[1755146991777,9.8832669,208.5,208.49,0.03]
[1755146992405,9.8832669,208.5,208.49,36.49]
[1755146992880,0.69,208.53,208.49,36.49]
[1755146993184,9.8832669,208.5,208.49,36.49]
[1755146994691,10.5732669,208.5,208.49,36.41]
[1755146995084,10.5732669,208.5,208.49,105.33]
[1755146995281,9.8832669,208.5,208.49,105.33]
[1755146997106,9.8832669,208.5,208.49,106.02]
[1755146997403,9.8832669,208.5,208.49,105.33]
[1755146998114,10.0,208.56,208.49,106.02]
[1755146998406,9.8832669,208.5,208.49,106.02]
[1755146998569,9.8832669,208.5,208.49,72.899327]
[1755146998774,9.8832669,208.5,208.49,1.369327]
[1755146998988,10.5732669,208.5,208.47,0.03]
[1755146999199,10.0,208.51,208.48,36.4]
[1755146999408,10.69,208.51,208.48,36.4]
[1755146999969,0.69,208.5,208.47,0.03]
[1755147000204,10.69,208.49,208.48,36.4]
[1755147000406,20.5732669,208.49,208.47,0.03]
[1755147000613,9.8832669,208.48,208.47,0.03]
[1755147001073,12.497117,208.49,208.47,0.03]
[1755147001272,9.8832669,208.48,208.47,0.03]
[1755147001704,9.8832669,208.48,208.47,36.55]
[1755147002372,20.5832669,208.48,208.47,0.03]
[1755147002592,20.5832669,208.48,208.37,0.67]
[1755147002898,9.8832669,208.38,208.37,0.67]
[1755147003774,9.8832669,208.38,208.34,0.67]
[1755147004094,9.8832669,208.35,208.31,0.67]
[1755147004387,9.8832669,208.32,208.31,0.67]
[1755147004588,9.8832669,208.32,208.28,0.77]
[1755147004770,9.8832669,208.29,208.28,0.1]
[1755147005106,9.8832669,208.29,208.28,105.64]
[1755147005782,20.4665338,208.29,208.15,0.67]
[1755147005982,9.8832669,208.18,208.16,106.21]
[1755147006278,0.7,208.29,208.17,0.67]
[1755147006589,9.8832669,208.28,208.17,0.67]
[1755147006898,9.8832669,208.29,208.17,0.67]
[1755147007402,9.8832669,208.28,208.17,0.67]
[1755147007712,9.8832669,208.27,208.17,0.67]
[1755147008383,9.8832669,208.29,208.18,36.64]
[1755147008698,9.8832669,208.32,208.19,0.67]
[1755147008876,9.8832669,208.33,208.19,0.67]
[1755147009078,0.7,208.32,208.2,0.67]
[1755147009402,9.8832669,208.26,208.21,36.64]
[1755147009708,0.7,208.32,208.22,0.67]
[1755147009873,9.8832669,208.26,208.22,0.67]
[1755147010074,9.8832669,208.25,208.23,0.67]
[1755147010617,9.8832669,208.24,208.23,0.67]
[1755147010984,9.8832669,208.24,208.23,37.41]
[1755147011526,0.7,208.37,208.23,37.41]
[1755147011816,9.8832669,208.3,208.24,0.67]
[1755147011986,9.8832669,208.25,208.14,0.03]
[1755147012182,9.8832669,208.22,208.21,0.67]
[1755147012386,9.8832669,208.23,208.21,0.67]
[1755147012696,10.0,208.28,208.22,0.67]
[1755147012881,10.0,208.28,208.18,0.67]
[1755147012882,9.8832669,208.23,208.18,0.67]
[1755147013077,10.7,208.28,208.14,0.03]
[1755147013078,9.8832669,208.2,208.19,0.67]
[1755147013315,9.8832669,208.2,208.19,37.45]
[1755147014415,9.8832669,208.2,208.19,36.78]
[1755147014592,9.8832669,208.2,208.15,0.67]
[1755147014786,9.8832669,208.17,208.16,36.74]
[1755147014983,9.8832669,208.17,208.16,69.0]
[1755147015201,0.7,208.21,208.16,106.41]
[1755147015202,9.8832669,208.21,208.16,106.41]
[1755147015409,0.25,208.27,208.17,36.78]
[1755147015410,9.8832669,208.2,208.17,36.78]
[1755147015731,0.25,208.29,208.18,0.67]
[1755147016192,9.8832669,208.25,208.18,0.67]
[1755147016507,10.0,208.24,208.18,0.67]
[1755147016724,9.8832669,208.27,208.18,0.67]
[1755147016883,0.25,208.33,208.18,0.67]
[1755147016884,10.0,208.3,208.18,0.67]
[1755147017078,9.8832669,208.33,208.18,0.67]
[1755147017313,9.8832669,208.31,208.18,0.67]
[1755147017637,9.8832669,208.25,208.18,0.67]
[1755147017806,9.8832669,208.22,208.19,36.82]
[1755147018005,20.0,208.36,208.2,0.67]
[1755147018211,9.8832669,208.32,208.2,0.67]
[1755147020505,9.8832669,208.3,208.2,0.67]
[1755147021936,9.8832669,208.32,208.2,0.67]
[1755147022108,9.8832669,208.3,208.2,0.67]
[1755147022535,9.8832669,208.31,208.2,0.67]
[1755147023237,9.8832669,208.3,208.2,0.67]
[1755147023421,9.8832669,208.31,208.2,0.67]
[1755147024111,19.8832669,208.32,208.2,0.67]
[1755147024430,10.0,208.32,208.2,0.67]
[1755147024812,9.8832669,208.34,208.2,0.67]
[1755147025033,19.8832669,208.35,208.21,69.0]
[1755147025333,10.0,208.35,208.22,0.67]
[1755147025522,26.0,208.34,208.22,0.67]
[1755147025726,26.0,208.33,208.22,0.67]
[1755147026113,19.8832669,208.37,208.22,0.67]
[1755147026308,0.7,208.4,208.24,26.0]
[1755147026511,9.8832669,208.41,208.25,0.67]
[1755147026726,26.0,208.38,208.25,0.67]
[1755147027135,0.7,208.46,208.25,0.67]
[1755147027438,24.2486749,208.44,208.25,0.67]
[1755147027630,9.8832669,208.43,208.25,0.67]
[1755147028636,9.8832669,208.47,208.25,0.67]
[1755147028819,9.8832669,208.46,208.25,0.67]
[1755147029008,9.8832669,208.44,208.25,0.67]
[1755147029208,9.8832669,208.44,208.29,26.0]
[1755147029433,9.8832669,208.44,208.3,0.67]
[1755147029639,9.8832669,208.44,208.33,26.0]
[1755147030138,9.8832669,208.42,208.34,63.29]
[1755147030735,9.8832669,208.43,208.34,63.29]
[1755147031340,24.9172989,208.45,208.35,0.69]
[1755147031519,9.8832669,208.47,208.37,26.0]
[1755147031722,0.73,208.48,208.38,0.69]
[1755147031913,10.6132669,208.48,208.38,0.69]
[1755147032118,9.8832669,208.45,208.38,0.69]
[1755147032320,9.8832669,208.43,208.24,10.0]
[1755147032528,9.8832669,208.42,208.28,26.0]
[1755147032728,9.8832669,208.42,208.29,37.27]
[1755147032930,9.8832669,208.42,208.32,26.0]
[1755147033134,9.8832669,208.42,208.33,0.69]
[1755147033322,9.8832669,208.43,208.33,0.69]
[1755147033838,9.8832669,208.42,208.33,0.69]
[1755147035037,9.8832669,208.42,208.37,26.0]
[1755147035540,9.8832669,208.43,208.37,26.0]
[1755147037144,9.8832669,208.42,208.37,26.0]
[1755147037313,0.67,208.44,208.38,0.69]
[1755147037314,9.8832669,208.43,208.38,0.69]
[1755147037829,9.8832669,208.43,208.39,36.48]
[1755147038144,9.8832669,208.43,208.4,36.48]
[1755147039525,14.364032,208.46,208.35,0.69]
[1755147039853,9.8832669,208.36,208.3,0.69]
[1755147040138,9.8832669,208.32,208.31,36.46]
[1755147041433,9.8832669,208.33,208.31,36.46]
[1755147042537,35.8832669,208.32,208.25,0.03]
[1755147042744,9.8832669,208.26,208.25,0.03]
[1755147042954,9.8832669,208.26,208.25,36.47]
[1755147043132,10.5532669,208.26,208.25,36.47]
[1755147044233,9.8832669,208.26,208.25,36.47]
[1755147045058,14.377111,208.28,208.25,106.16]
[1755147045353,14.377111,208.28,208.26,0.69]
[1755147046260,14.377111,208.28,208.27,26.0]
[1755147046552,14.377111,208.28,208.27,26.69]
[1755147047534,0.06,208.46,208.27,26.69]
[1755147047535,9.8832669,208.44,208.28,26.0]
[1755147047735,9.8832669,208.43,208.28,26.0]
[1755147047977,9.8832669,208.44,208.29,0.69]
[1755147048266,9.8832669,208.41,208.29,0.69]
[1755147048444,9.8832669,208.4,208.33,26.0]
[1755147048652,9.8832669,208.39,208.33,26.0]
[1755147048845,9.8832669,208.38,208.34,36.52]
[1755147049039,9.8832669,208.38,208.35,36.52]
[1755147049336,9.8832669,208.36,208.35,36.52]
[1755147049543,10.5532669,208.36,208.35,36.52]
[1755147051338,40.369536,208.4,208.35,36.52]
[1755147051538,9.8832669,208.37,208.35,36.52]
[1755147052663,35.8832669,208.36,208.35,36.52]
[1755147053469,10.5532669,208.36,208.35,36.52]
[1755147054939,10.5532669,208.36,208.35,105.52]
[1755147055758,36.5532669,208.36,208.35,69.0]
[1755147055962,36.5532669,208.36,208.35,105.4]
[1755147056473,10.5532669,208.36,208.35,105.4]
[1755147056840,24.9255569,208.36,208.35,105.4]
[1755147057261,10.5532669,208.36,208.35,105.4]
[1755147058467,9.8832669,208.36,208.35,105.4]
[1755147058651,14.371602,208.37,208.35,105.4]
[1755147058856,9.8832669,208.36,208.35,105.4]
[1755147059046,35.8832669,208.36,208.35,105.4]
[1755147059252,36.5532669,208.36,208.35,105.4]
[1755147059767,50.9248689,208.36,208.35,105.4]
[1755147060075,36.5532669,208.36,208.35,105.4]
[1755147060452,9.8832669,208.36,208.35,105.4]
[1755147060842,9.8832669,208.36,208.35,70.9]
[1755147061474,10.5532669,208.36,208.35,70.9]
[1755147061768,9.9432669,208.41,208.35,37.08]
[1755147061958,9.8832669,208.39,208.35,37.08]
[1755147062155,0.06,208.41,208.35,37.08]
[1755147062156,9.8832669,208.37,208.35,37.08]
[1755147062356,9.8832669,208.38,208.35,37.08]
[1755147062872,9.8832669,208.38,208.35,36.4]
[1755147063056,9.8832669,208.38,208.35,37.08]
[1755147063254,9.8832669,208.36,208.3,0.68]
[1755147063456,26.06,208.41,208.26,0.03]
[1755147063457,0.67,208.35,208.26,0.03]
[1755147063660,0.67,208.35,208.27,21.68]
[1755147063661,9.8832669,208.32,208.27,21.68]
[1755147063972,26.0,208.35,208.28,0.68]
[1755147063973,9.8832669,208.34,208.28,0.68]
[1755147064155,0.67,208.38,208.28,0.68]
[1755147064360,26.0,208.35,208.29,36.52]
[1755147064554,9.8832669,208.32,208.29,36.52]
[1755147064959,9.8832669,208.32,208.3,69.68]
[1755147065254,9.8832669,208.32,208.3,69.0]
[1755147065856,9.8832669,208.31,208.3,69.0]
[1755147066147,9.8832669,208.32,208.3,69.0]
[1755147066468,26.0,208.34,208.3,69.68]
[1755147066650,9.8832669,208.33,208.3,69.68]
[1755147067159,9.8832669,208.32,208.3,69.68]
[1755147067366,9.8832669,208.32,208.3,69.0]
[1755147069250,9.8832669,208.33,208.3,69.0]
[1755147069453,9.8832669,208.32,208.3,69.0]
[1755147069671,9.8832669,208.31,208.3,69.0]
[1755147070277,26.0,208.34,208.3,69.0]
[1755147070579,26.0,208.34,208.26,0.03]
[1755147070580,9.8832669,208.31,208.26,0.03]
[1755147070771,0.67,208.33,208.27,36.38]
[1755147070959,9.8832669,208.29,208.27,36.38]
[1755147071293,40.372978,208.34,208.28,0.68]
[1755147071454,35.8832669,208.34,208.28,0.68]
[1755147071758,9.8832669,208.31,208.28,0.68]
[1755147072378,26.0,208.34,208.28,0.68]
[1755147072558,9.8832669,208.33,208.28,0.68]
[1755147072757,26.0,208.34,208.29,0.68]
[1755147072968,79.77,208.42,208.29,0.68]
[1755147073167,14.369537,208.4,208.3,26.0]
[1755147073379,9.9432669,208.41,208.31,0.68]
[1755147073585,9.9432669,208.41,208.32,36.42]
[1755147073784,0.06,208.41,208.33,0.68]
[1755147074086,26.0,208.4,208.33,0.68]
[1755147074290,9.8832669,208.38,208.33,0.68]
[1755147074970,9.8832669,208.34,208.29,0.68]
[1755147075169,9.8832669,208.32,208.3,69.0]
[1755147075362,9.8832669,208.32,208.31,36.4]
[1755147076259,9.8832669,208.33,208.31,36.4]
[1755147076476,9.8832669,208.35,208.31,36.4]
[1755147076677,9.8832669,208.34,208.31,36.4]
[1755147077264,0.67,208.37,208.31,36.4]
[1755147077466,9.8832669,208.34,208.31,37.08]
[1755147078472,0.67,208.37,208.31,36.4]
[1755147078672,9.8832669,208.33,208.31,36.4]
[1755147078984,9.8832669,208.32,208.26,0.03]
[1755147079166,9.8832669,208.27,208.26,0.03]
[1755147079481,9.8832669,208.28,208.26,36.35]
[1755147079684,0.67,208.32,208.26,0.03]
[1755147079857,9.8832669,208.28,208.27,36.32]
[1755147081576,14.370913,208.36,208.27,37.0]
[1755147081785,9.8832669,208.36,208.3,26.0]
[1755147081968,9.8832669,208.36,208.3,26.68]
[1755147082179,9.8832669,208.34,208.3,26.68]
[1755147082880,0.67,208.38,208.3,26.68]
[1755147083091,9.8832669,208.34,208.3,26.68]
[1755147083382,9.8832669,208.31,208.26,0.03]
[1755147083598,9.8832669,208.31,208.27,37.0]
[1755147083790,9.8832669,208.31,208.28,0.68]
[1755147084185,9.8832669,208.31,208.29,36.34]
[1755147084982,9.8832669,208.35,208.3,69.68]
[1755147085156,9.8832669,208.35,208.3,105.32]
[1755147085360,9.8832669,208.35,208.31,0.68]
[1755147085786,9.9432669,208.35,208.31,0.68]
[1755147086497,9.9432669,208.35,208.32,0.68]
[1755147086986,0.06,208.35,208.32,0.68]
[1755147088198,0.06,208.35,208.3,37.0]
[1755147088400,0.06,208.35,208.26,0.03]
[1755147088401,9.8832669,208.34,208.26,0.03]
[1755147088575,9.8832669,208.3,208.27,36.28]
[1755147088772,9.8832669,208.29,208.27,36.28]
[1755147088999,0.73,208.35,208.27,36.28]
[1755147089000,9.8832669,208.28,208.27,36.28]
[1755147089501,0.67,208.33,208.27,36.28]
[1755147089502,9.8832669,208.3,208.27,36.96]
[1755147089685,26.0,208.34,208.28,0.68]
[1755147089872,9.8832669,208.3,208.28,0.68]
[1755147090494,9.8832669,208.31,208.28,0.68]
[1755147091609,9.8832669,208.33,208.29,0.66]
[1755147091780,9.9432669,208.35,208.3,0.66]
[1755147091974,9.9432669,208.35,208.31,0.66]
[1755147092182,9.9432669,208.35,208.32,36.28]
[1755147093377,9.9432669,208.35,208.15,134.62597991]
[1755147093378,19.9432669,208.35,208.15,134.62597991]
[1755147093584,19.9432669,208.35,208.12,146.10251911]
[1755147094300,10.0,208.33,208.12,137.48460089]
[1755147094609,10.0,208.33,208.13,41.014]
[1755147094904,10.0,208.33,208.13,75.514]
[1755147095107,10.0,208.33,208.23,34.5]
[1755147095308,10.0,208.33,208.27,26.0]
[1755147095684,10.0,208.33,208.27,26.66]
[1755147096092,10.72,208.32,208.26,26.0]
[1755147096405,20.6032669,208.32,208.27,36.18]
[1755147096582,20.6032669,208.32,208.28,0.66]
[1755147096583,10.0,208.32,208.28,0.66]
[1755147096790,0.06,208.35,208.3,26.0]
[1755147096999,0.06,208.35,208.31,0.66]
[1755147097200,0.06,208.35,208.32,36.18]
[1755147097390,0.06,208.35,208.33,0.66]
[1755147097715,0.06,208.35,208.34,0.66]
[1755147097898,0.06,208.35,208.34,26.66]
[1755147098797,0.06,208.35,208.34,0.66]
[1755147099209,0.06,208.35,208.31,0.66]
[1755147099412,0.06,208.35,208.32,36.16]
[1755147099614,0.06,208.35,208.33,36.16]
[1755147100291,0.06,208.35,208.34,36.14]
[1755147100490,0.78,208.35,208.34,36.14]
[1755147100805,20.6632669,208.35,208.34,36.14]
[1755147101514,19.9432669,208.35,208.34,36.14]
[1755147102431,10.06,208.35,208.34,36.12]
[1755147102598,20.6632669,208.35,208.34,36.12]
[1755147103317,10.06,208.35,208.34,36.12]
[1755147104821,20.6632669,208.35,208.26,0.66]
[1755147105120,9.8832669,208.32,208.27,131.08]
[1755147105721,9.8832669,208.32,208.27,61.16]
[1755147105916,9.8832669,208.32,208.28,36.06]
[1755147106622,9.8832669,208.29,208.23,0.66]
[1755147106794,9.8832669,208.28,208.24,36.06]
[1755147107124,9.8832669,208.29,208.24,36.06]
[1755147107320,9.8832669,208.29,208.25,0.66]
[1755147107517,10.0,208.3,208.26,0.66]
[1755147107713,0.72,208.34,208.24,36.06]
[1755147107714,20.6032669,208.34,208.27,26.66]
[1755147107916,0.06,208.35,208.28,0.66]
[1755147108119,0.06,208.35,208.29,36.06]
[1755147108322,0.06,208.35,208.3,0.66]
[1755147108523,0.06,208.35,208.29,36.06]
[1755147108717,0.06,208.35,208.31,0.66]
[1755147108914,0.06,208.35,208.32,26.66]
[1755147109234,0.06,208.35,208.33,0.66]
[1755147109527,0.06,208.35,208.34,36.08]
[1755147109829,0.06,208.35,208.34,36.74]
[1755147111417,0.06,208.35,208.34,36.08]
[1755147111619,0.06,208.35,208.34,36.06]
[1755147112828,0.06,208.35,208.34,36.72]
[1755147114712,9.68,208.4,208.34,36.72]
[1755147115016,9.68,208.4,208.35,69.0]
[1755147115220,9.68,208.4,208.36,0.66]
[1755147115418,9.68,208.4,208.37,0.66]
[1755147115734,9.68,208.4,208.38,35.98]
[1755147116037,9.68,208.4,208.39,3.16000939]
[1755147116334,0.06,208.41,208.39,3.16000939]
[1755147116510,0.06,208.41,208.38,35.98]
[1755147116511,9.74,208.41,208.4,3.16000939]
[1755147117122,0.06,208.41,208.4,3.16000939]
[1755147117334,9.74,208.41,208.4,3.16000939]
[1755147117849,0.06,208.41,208.4,3.16000939]
[1755147118031,0.06,208.41,208.4,3.82000939]
[1755147118434,0.06,208.41,208.4,29.82000939]
[1755147120543,0.01150996,208.42,208.4,29.82000939]
[1755147120835,0.06,208.48,208.44,26.32]
[1755147121034,0.06,208.48,208.45,39.75000939]
[1755147121614,0.06,208.48,208.47,26.0]
[1755147121814,0.06,208.48,208.47,29.83000939]
[1755147122317,0.06,208.48,208.47,39.12000939]
[1755147122927,0.06,208.48,208.47,39.79000939]
[1755147123614,0.06,208.48,208.47,65.12000939]
[1755147124034,0.06,208.48,208.47,39.12000939]
[1755147124633,0.76,208.48,208.47,3.16000939]
[1755147124942,10.6432669,208.48,208.47,37.64000939]
[1755147125244,10.6432669,208.48,208.47,108.10000939]
[1755147125740,0.06,208.48,208.47,108.10000939]
[1755147125941,0.06,208.48,208.47,39.14000939]
[1755147126240,0.06,208.48,208.47,39.81000939]
[1755147126644,0.06,208.48,208.47,39.14000939]
[1755147126841,0.06,208.48,208.47,39.81000939]
[1755147127542,0.06,208.48,208.47,39.14000939]
[1755147127743,0.06,208.48,208.47,65.16000939]
[1755147130233,0.06,208.48,208.47,65.12000939]
[1755147131135,0.06,208.48,208.47,39.79000939]
[1755147132144,0.06,208.5,208.49,26.0]
[1755147132349,0.06,208.51,208.49,65.77000939]
[1755147132545,0.06,208.51,208.5,3.16000939]
[1755147132744,0.06,208.51,208.5,3.83000939]
[1755147134230,0.06,208.53,208.5,3.83000939]
[1755147134459,0.06,208.53,208.51,39.77000939]
[1755147134629,0.06,208.53,208.52,3.83000939]
[1755147134952,0.06,208.53,208.52,72.79000939]
[1755147135325,0.06,208.53,208.52,72.70278086]
[1755147136826,0.06,208.53,208.52,3.74278086]
[1755147138155,0.06,208.53,208.52,36.57]
[1755147138727,0.06,208.55,208.54,26.0]
[1755147138934,0.06,208.55,208.54,62.53]
[1755147139742,0.06,208.55,208.54,26.0]
[1755147139951,0.06,208.55,208.51,0.67]
[1755147140146,0.06,208.55,208.54,26.0]
[1755147140345,0.06,208.55,208.54,61.88]
[1755147141634,0.76,208.55,208.54,35.88]
[1755147142834,0.06,208.55,208.54,35.88]
[1755147145079,0.06,208.55,208.54,104.8]
[1755147145955,0.76,208.55,208.54,104.8]
[1755147146463,20.3232669,208.55,208.54,34.46]
[1755147146671,0.06,208.55,208.54,35.78]
[1755147147456,10.6432669,208.55,208.54,35.82]
[1755147147657,10.6432669,208.55,208.46,0.67]
[1755147147833,10.6432669,208.55,208.47,35.82]
[1755147147834,10.5832669,208.54,208.47,35.82]
[1755147148037,0.7,208.54,208.5,26.0]
[1755147148234,0.7,208.53,208.51,35.84]
[1755147148436,0.7,208.52,208.45,0.03]
[1755147148673,10.38,208.52,208.46,35.84]
[1755147149451,0.7,208.52,208.46,35.84]
[1755147149766,0.7,208.52,208.47,35.82]
[1755147150180,0.7,208.52,208.45,0.7]
[1755147150378,0.7,208.52,208.46,35.8]
[1755147150973,0.06,208.55,208.49,26.0]
[1755147151194,0.06,208.55,208.53,26.0]
[1755147151369,20.2732669,208.54,208.45,0.03]
[1755147151663,9.8832669,208.49,208.46,35.86]
[1755147151874,0.71,208.48,208.46,35.89]
[1755147152766,0.71,208.47,208.46,35.89]
[1755147153560,9.8832669,208.48,208.46,35.89]
[1755147154057,10.5932669,208.48,208.46,35.89]
[1755147155087,10.5932669,208.48,208.47,68.92]
[1755147155600,20.2732669,208.48,208.47,68.92]
[1755147155899,20.2732669,208.48,208.46,0.03]
[1755147156060,10.5932669,208.47,208.45,0.03]
[1755147156265,9.68,208.48,208.42,0.03]
[1755147156266,9.68,208.43,208.42,0.03]
[1755147156460,20.2732669,208.43,208.42,0.03]
[1755147157274,20.2732669,208.43,208.42,35.85]
[1755147162875,9.68,208.43,208.42,35.85]
[1755147163885,20.2732669,208.43,208.42,35.85]
[1755147164081,9.8832669,208.44,208.42,35.85]
[1755147164980,20.2732669,208.43,208.42,35.85]
[1755147165302,20.2732669,208.43,208.42,104.81]